[Event "MPL 41st IND-ch Teams 2022"]
[Site "Jalgaon"]
[Date "2022.04.09"]
[Round "3.2"]
[White "Puranik, Abhimanyu"]
[Black "Kiran, Manisha Mohanty"]
[Result "1-0"]
[ECO "B63"]
[WhiteElo "2618"]
[BlackElo "2168"]
[Annotator "TA"]
[PlyCount "159"]
[EventDate "2022.04.08"]
[EventType "team-tourn"]
[EventCountry "IND"]
[SourceTitle "playchess.com"]
[Source "ChessBase"]
[SourceQuality "1"]
[TimeControl "5400+30"]

{[%evp 20,159,67,59,69,27,79,72,68,75,69,81,82,36,22,16,16,16,22,0,0,0,0,0,0,-21,0,-15,-16,-7,-12,-18,0,-11,0,0,0,-16,0,0,0,-52,0,0,0,0,0,0,0,0,12,12,12,2,2,2,10,10,10,0,0,0,2,8,16,3,23,6,20,19,38,39,83,83,83,85,82,87,115,57,154,38,245,245,245,245,245,245,241,241,367,241,241,242,247,240,239,239,283,268,276,261,377,354,488,406,406,406,406,406,5933,5887,5135,468,458,425,538,41,494,865,694,618,813,772,29994,29981,29987,29988,29988,29984,29982,0,29988,29988,29995,29995,29996,29997,29997,29998,29998,29999]} 1. e4 {[%emt 0:00:04]} c5 {[%emt 0:00:42]} 2. Nf3 {[%emt 0:00:04]} d6 {[%emt 0:00:09]} 3. d4 {[%emt 0:00:06]} cxd4 {[%emt 0:00:07]} 4. Nxd4 {[%emt 0:00:04]} Nf6 {[%emt 0:00:08]} 5. Nc3 {[%emt 0:00:04]} Nc6 {[%emt 0:00:05]} 6. Bg5 {[%emt 0:00:07]} e6 {[%emt 0:00:05]} 7. Qd2 {[%emt 0:00:13]} Be7 {[%emt 0:00:07]} 8. O-O-O {[%emt 0:00:17]} Nxd4 {[%emt 0:00:09]} 9. Qxd4 {[%emt 0:00:04]} O-O {[%emt 0:00:09]} 10. h4 {[%emt 0:01:17]} Qa5 {[%emt 0:11:00]} 11. Kb1 {[%emt 0:00:20] &Bianco is more active.} a6 {[%emt 0:04:02] B63: Sicilian: Richter-Rauzer: 7...Be7 and unusual Black 7th moves.} 12. Qd2 {[%emt 0:11:38][%cal Oc3d5] Threatens to win with Nd5!} Qc5 {[%emt 0:14:55] [#] Inhibits Nd5.} (12... Qc7 $11 {remains equal.}) 13. g4 $146 {[%emt 0:10:51]} ({Predecessor:} 13. f4 b5 14. Bxf6 gxf6 15. Bd3 Bb7 16. g4 b4 17. Ne2 a5 18. g5 Kh8 19. Rc1 {0-1 (36) Tonndorf,M (2256)-Mueller,O (2295) Knuellwald 2017}) 13... b5 {[%emt 0:14:26] White is better.} 14. e5 {[%emt 0:08:40]} dxe5 {[%emt 0:14:32] aiming for ...Bb7.} 15. Bg2 {[%emt 0:03:03] Inhibits Bb7.} Nd5 {[%emt 0:08:29]} 16. Bxd5 {[%emt 0:03:00]} (16. Nxd5 $16 exd5 17. Bxd5) 16... exd5 $14 {[%emt 0:00:51]} 17. Nxd5 {[%emt 0:00:09]} f6 {[%emt 0:04:32]} 18. Be3 {[%emt 0:01:32]} Qd6 {[%emt 0:00:16]} 19. g5 {[%emt 0:15:03]} (19. b4 $5 {[%cal Re3c5]} Bb7 20. Nxe7+ (20. Bc5 Qxd5 21. Qxd5+ Bxd5 $11) 20... Qxe7 21. Bc5 $11) 19... Bb7 {[%emt 0:04:01] And now ...Rad8 would win.} 20. Nxe7+ {[%emt 0:12:39]} Qxe7 {[%emt 0:00:08]} 21. Rhg1 {[%emt 0:00:09]} f5 {[%emt 0:05:19]} 22. f4 {[%emt 0:02:32]} Rfd8 {[%emt 0:01:06]} 23. Qc3 {[%emt 0:02:42]} exf4 {[%emt 0:00:34]} 24. Bxf4 {[%emt 0:00:59]} Rac8 {[%emt 0:00:25]} 25. Qb3+ {[%emt 0:04:50]} Qf7 {[%emt 0:00:16]} 26. Qb4 {[%emt 0:03:21]} Be4 {[%emt 0:04:01]} 27. Rxd8+ {[%emt 0:00:47]} Rxd8 {[%emt 0:00:02]} 28. b3 {[%emt 0:02:31]} Qa7 {[%emt 0:02:30]} 29. Rc1 {[%emt 0:01:42]} Qd4 {[%emt 0:00:51]} 30. Qa5 {[%emt 0:04:00]} (30. Qe7 $11 Qd7 31. Qxd7 Rxd7 32. Kb2) 30... Ra8 {[%emt 0:00:26]} (30... Rc8 $1 $15) 31. Qc7 $11 {[%emt 0:00:42]} Qd8 {[%emt 0:00:30]} 32. Qe5 {[%emt 0:01:04]} Qd5 {[%emt 0:00:14]} 33. Qxd5+ {[%emt 0:01:48]} Bxd5 {[%emt 0:00:03][%mdl 4096] Endgame KRB-KRB} 34. Rd1 {[%emt 0:00:04]} Rd8 {[%emt 0:03:12]} 35. Kb2 {[%emt 0:00:46][%cal Oc2c4] Hoping for c4!} Rd7 $1 {[%emt 0:00:07]} 36. Rd3 {[%emt 0:05:20]} Kf7 {[%emt 0:00:14]} 37. h5 {[%emt 0:00:12]} Bc6 {[%emt 0:00:22]} 38. Rc3 {[%emt 0:00:02]} Be4 {[%emt 0:00:14]} 39. Rc8 {[%emt 0:00:07]} Bf3 {[%emt 0:00:38]} 40. h6 {[%emt 0:00:11]} gxh6 {[%emt 0:00:13]} 41. gxh6 {[%emt 0:00:02]} Ke6 {[%emt 0:02:04]} 42. Re8+ {[%emt 0:01:00]} Re7 {[%emt 0:00:09]} 43. Rf8 {[%emt 0:01:04]} Rf7 {[%emt 0:00:12]} 44. Rb8 {[%emt 0:00:46]} Kd5 {[%emt 0:01:04]} 45. Re8 {[%emt 0:00:02]} Bh5 {[%emt 0:01:56]} 46. Re5+ {[%emt 0:00:32] Black is on the road to losing.} Kc6 {[%emt 0:00:38]} 47. c4 {[%emt 0:00:09]} bxc4 {[%emt 0:00:10]} 48. bxc4 {[%emt 0:00:06]} Bf3 {[%emt 0:01:16] [#]} 49. Kc3 {[%emt 0:00:12]} (49. Re6+ $1 $16 Kb7 50. Kc3) 49... Be4 {[%emt 0:00:14]} ({Black should try} 49... Kd7 $1 $14) 50. a4 {[%emt 0:01:12]} (50. Re6+ $16 Kb7 51. Kb4) 50... Rd7 $2 {[%emt 0:00:22]} (50... Kd7 $1 $14) 51. Re6+ $18 {[%emt 0:00:14]} Kb7 {[%emt 0:00:16]} 52. Kb4 {[%emt 0:00:46]} Bc6 {[%emt 0:00:31]} 53. a5 {[%emt 0:00:51]} Rd4 {[%emt 0:00:42]} 54. Re7+ {[%emt 0:00:07]} Ka8 {[%emt 0:01:04]} (54... Rd7 {might work better.} 55. Rg7 Ka7) 55. Be5 {[%emt 0:03:11]} Rd7 {[%emt 0:00:21]} 56. Re6 {[%emt 0:00:11]} Kb7 {[%emt 0:00:16]} 57. Kc5 {[%emt 0:00:10]} Be4 {[%emt 0:00:25]} 58. Re8 {[%emt 0:01:18]} f4 {[%emt 0:00:57]} 59. Bxf4 {[%emt 0:00:11]} Bg6 {[%emt 0:00:04]} 60. Re6 {[%emt 0:00:51] Rb6+ is the strong threat.} Rf7 {[%emt 0:01:11]} (60... Bh5 {was called for.} 61. Rb6+ Ka7 62. Bb8+ Ka8) 61. Rb6+ {[%emt 0:00:48]} Ka7 {[%emt 0:00:09]} 62. Bb8+ {[%emt 0:00:03]} Ka8 {[%emt 0:00:09]} 63. Be5 {[%emt 0:00:08]} Ka7 {[%emt 0:00:14]} 64. Bd4 {[%emt 0:02:12][%cal Ob6g6]} Be4 {[%emt 0:01:01]} (64... Bh5 $142 65. Kd5 Ka8 66. Rxa6+ Kb7 67. Rb6+ Ka8) 65. Kd6 {[%emt 0:00:17] Ke5 would kill now.} Rf5 {[%emt 0:02:17]} 66. Rc6+ {[%emt 0:00:41]} (66. Rb3+ $142 Ka8 67. Re3) 66... Kb8 {[%emt 0:00:22] [#]} 67. Rc7 $1 {[%emt 0:02:51]} Rh5 {[%emt 0:00:48]} 68. Ba7+ {[%emt 0:00:49]} Ka8 {[%emt 0:00:02]} 69. Be3 {[%emt 0:00:08]} Rh3 {[%emt 0:00:22]} 70. Bf4 {[%emt 0:00:31]} Rh5 {[%emt 0:01:02]} 71. Re7 {[%emt 0:00:18]} Bd3 {[%emt 0:00:18]} 72. c5 {[%emt 0:00:19][%cal Bc4c5,Bc5c6][%mdl 32]} Rf5 {[%emt 0:00:11]} 73. Be5 {[%emt 0:00:28]} Rh5 {[%emt 0:00:16]} 74. Re8+ {[%emt 0:00:27]} Ka7 {[%emt 0:00:10]} 75. Re7+ {[%emt 0:00:10]} Ka8 $1 {[%emt 0:00:08]} 76. c6 {[%emt 0:00:52] White mates.} Rxh6+ {[%emt 0:00:43]} 77. Kc5 {[%emt 0:00:03]} Rh1 {[%emt 0:02:33]} 78. Re8+ {[%emt 0:00:11]} Ka7 {[%emt 0:00:02]} 79. Bb8+ {[%emt 0:00:05]} Ka8 {[%emt 0:00:21]} 80. Bc7+ {[%emt 0:00:03] Weighted Error Value: White=0.14 (very precise) /Black=0.23 (precise)} 1-0

[Event "MPL 41st IND-ch Teams 2022"]
[Site "Jalgaon"]
[Date "2022.04.09"]
[Round "3.3"]
[White "Sriram, Jha"]
[Black "Harsha Bharathakoti"]
[Result "1/2-1/2"]
[ECO "A04"]
[WhiteElo "2379"]
[BlackElo "2499"]
[Annotator "TA"]
[PlyCount "80"]
[EventDate "2022.04.08"]
[EventType "team-tourn"]
[EventCountry "IND"]
[SourceTitle "playchess.com"]
[Source "ChessBase"]
[SourceQuality "1"]
[TimeControl "5400+30"]

{[%evp 18,80,64,47,54,55,52,49,56,47,49,55,40,56,69,50,48,48,65,53,67,59,75,78,84,73,114,95,128,52,55,58,60,40,48,45,45,41,62,59,46,47,59,34,52,38,76,73,77,16,20,18,17,19,28,0,0,0,0,0,0,0,25,16,24]} 1. Nf3 {[%emt 0:00:29]} f5 {[%emt 0:00:44]} 2. g3 {[%emt 0:00:50]} Nf6 {[%emt 0:00:04]} 3. Bg2 {[%emt 0:00:08]} g6 {[%emt 0:00:03]} 4. b3 {[%emt 0:00:07]} Bg7 {[%emt 0:00:04]} 5. Bb2 {[%emt 0:00:02]} O-O {[%emt 0:00:31]} 6. O-O {[%emt 0:00:14]} d6 {[%emt 0:00:08]} 7. d4 {[%emt 0:00:12]} Qe8 {[%emt 0:01:19]} 8. c4 {[%emt 0:00:13]} Na6 {[%emt 0:00:17]} 9. Nbd2 {[%emt 0:03:45]} c6 {[%emt 0:02:35]} 10. Qc2 {[%emt 0:03:35]} Rb8 {[%emt 0:03:48] A87: Dutch Defence: Leningrad System: 5 Nf3.} 11. a3 {[%emt 0:01:58]} Nc7 {[%emt 0:10:45]} 12. Rfe1 {[%emt 0:08:59]} b5 {[%emt 0:04:06] White is slightly better.} 13. Rac1 {[%emt 0:01:41]} Bd7 {[%emt 0:01:40]} 14. Bc3 {[%emt 0:25:04]} Bh6 {[%emt 0:05:17]} 15. e3 {[%emt 0:03:52] [#]} Qf7 $146 {[%emt 0:07:19]} ({Predecessor:} 15... a6 16. h4 Rc8 17. a4 Ne6 18. Ra1 Rc7 19. axb5 axb5 20. Ra6 Bg7 21. Rea1 h6 {½-½ (40) Fischer,D (2338)-Voetter,H (2381) ICCF email 2016}) 16. Rcd1 {[%emt 0:07:55]} Ne6 {[%emt 0:08:58]} 17. a4 {[%emt 0:03:34]} bxa4 {[%emt 0:07:05][%cal Of6e4]} 18. bxa4 {[%emt 0:00:05]} (18. b4 {seems wilder.} Ne4 19. Ra1 a5 20. bxa5 c5 21. Nxe4 fxe4 22. Qxe4 cxd4 23. Nxd4 Nc5 24. Qd5) 18... Ne4 {[%emt 0:05:10]} 19. Ba1 {[%emt 0:04:01][%cal Oc4c5]} ({Don't play} 19. Nxe4 fxe4 20. Qxe4 Ng5 21. Nxg5 Qxf2+ 22. Kh1 Bxg5 $15) 19... Nxd2 {[%emt 0:12:26]} 20. Nxd2 {[%emt 0:01:24]} Bg7 {[%emt 0:02:11]} 21. Rb1 {[%emt 0:01:53]} Rfc8 {[%emt 0:06:04]} 22. a5 {[%emt 0:01:40]} Qf8 {[%emt 0:02:20]} 23. Bc3 {[%emt 0:02:19]} (23. a6 $16) 23... Rxb1 $1 $14 {[%emt 0:04:59]} 24. Rxb1 {[%emt 0:00:12] Strongly threatening Rb7.} Rb8 {[%emt 0:00:07] Against Rb7} 25. Rb2 Qc8 {[%emt 0:07:25]} 26. Qb1 {[%emt 0:02:50]} Rxb2 {[%emt 0:00:02]} 27. Qxb2 {[%emt 0:00:01]} Nd8 {[%emt 0:00:17]} 28. c5 {[%emt 0:02:35] &Bianco is more active.} dxc5 {[%emt 0:00:04]} 29. dxc5 {[%emt 0:00:16]} Bxc3 {[%emt 0:00:04]} 30. Qxc3 {[%emt 0:00:01]} Qb8 {[%emt 0:02:11]} 31. e4 {[%emt 0:05:32]} Nf7 {[%emt 0:00:17]} 32. exf5 {[%emt 0:01:06]} gxf5 {[%emt 0:00:03]} 33. f4 {[%emt 0:01:03]} (33. Qd4 $16 Qc7 34. Nc4) 33... e5 $11 {[%emt 0:00:38]} 34. fxe5 {[%emt 0:00:44]} Qxe5 {[%emt 0:00:37]} 35. Qxe5 {[%emt 0:01:07]} Nxe5 {[%emt 0:00:04] KBN-KBN} 36. Nf3 {[%emt 0:02:20]} Nc4 {[%emt 0:02:15]} 37. a6 $1 {[%emt 0:00:14]} Kf7 {[%emt 0:00:39]} 38. Kf2 {[%emt 0:00:57]} Kf6 {[%emt 0:00:13]} 39. Nd4 {[%emt 0:01:49]} Ne5 {[%emt 0:00:04]} 40. Ke3 {[%emt 0:00:40]} h6 {[%emt 0:01:41] Weighted Error Value: White=0.11 (very precise) /Black=0.08 (flawless)} 1/2-1/2

[Event "MPL 41st IND-ch Teams 2022"]
[Site "Jalgaon"]
[Date "2022.04.09"]
[Round "3.4"]
[White "Sankalp Gupta"]
[Black "Swati Ghate"]
[Result "1-0"]
[ECO "B48"]
[WhiteElo "2536"]
[BlackElo "2136"]
[Annotator "TA"]
[PlyCount "53"]
[EventDate "2022.04.08"]
[EventType "team-tourn"]
[EventCountry "IND"]
[SourceTitle "playchess.com"]
[Source "ChessBase"]
[SourceQuality "1"]
[TimeControl "5400+30"]

{[%evp 17,53,59,51,36,56,60,72,54,56,66,72,56,61,0,0,-3,18,0,0,0,19,33,0,-17,18,0,0,16,0,0,8,4,217,209,1111,1064,1938,1784]} 1. e4 {[%emt 0:00:02]} c5 {[%emt 0:00:13]} 2. Nf3 {[%emt 0:00:03]} e6 {[%emt 0:00:08]} 3. d4 {[%emt 0:00:04]} cxd4 {[%emt 0:00:08]} 4. Nxd4 {[%emt 0:00:03]} Nc6 {[%emt 0:00:52]} 5. Nc3 {[%emt 0:00:04]} Qc7 {[%emt 0:00:21]} 6. Be3 {[%emt 0:00:03]} Nf6 {[%emt 0:03:28]} 7. f4 {[%emt 0:10:01]} d6 8. Qf3 {[%emt 0:06:09]} a6 {[%emt 0:04:22]} 9. O-O-O {[%emt 0:01:41]} Bd7 {[%emt 0:05:49]} 10. Rg1 {[%emt 0:16:57] B82: Sicilian Scheveningen: 6 f4.} Rc8 {[%emt 0:05:33]} 11. g4 $1 {[%emt 0:04:20][%cal Bg2g4,Bg4g5][%mdl 32] g5 is the strong threat.} h6 {[%emt 0:02:34] [#]} 12. h4 $146 {[%emt 0:04:09] Strongly threatening g5. &Bianco is more active. White is better.} ({Predecessor:} 12. Kb1 b5 13. a3 Be7 14. Be2 Nxd4 15. Bxd4 e5 16. Be3 Bc6 17. g5 hxg5 18. fxg5 {1-0 (33) David,A (2574)-Brunello,S (2557) Rome 2016}) 12... h5 {[%emt 0:02:58]} 13. g5 {[%emt 0:06:52]} Ng4 {[%emt 0:00:25]} 14. Nxc6 {[%emt 0:00:08]} Bxc6 {[%emt 0:05:07]} 15. Bh3 {[%emt 0:01:47]} (15. f5 $14) 15... b5 $1 $11 {[%emt 0:03:41][%cal Bb7b5,Bb5b4][%mdl 32] Black wants to play ...b4.} 16. Rd2 {[%emt 0:03:14]} ({Much worse is} 16. Bxg4 hxg4 17. Qg2 (17. Rxg4 $2 b4 $19) 17... b4 $17) 16... b4 {[%emt 0:09:00]} 17. Ne2 {[%emt 0:00:53]} d5 {[%emt 0:06:36]} 18. Bxg4 {[%emt 0:02:16]} dxe4 {[%emt 0:00:45]} 19. Qf2 {[%emt 0:05:23]} hxg4 {[%emt 0:00:10]} 20. f5 {[%emt 0:00:19]} Bd5 {[%emt 0:08:53] [#] Threatens to win with ...Qa5.} (20... b3 $5 21. a3 bxc2 22. Rxc2 Bd6 $15) 21. Kb1 {[%emt 0:02:04]} g3 {[%emt 0:08:17]} 22. Nxg3 {[%emt 0:01:25] Black must now prevent h5.} Rxh4 {[%emt 0:00:45]} 23. fxe6 Bxe6 {[%emt 0:13:58]} 24. Rgd1 {[%emt 0:08:43]} Qb8 $2 {[%emt 0:12:41]} (24... Qe5 $1 $11) 25. g6 $18 {[%emt 0:10:52] The board is on fire.} Rg4 $2 {[%emt 0:02:01]} (25... fxg6 26. Bg5 (26. Rf1 Be7 $16) 26... Rg4 27. Rd8+ Rxd8 28. Rxd8+ Qxd8 29. Bxd8 Bd6) 26. gxf7+ {[%emt 0:01:56][%mdl 64] Deflection} Bxf7 {[%emt 0:00:02] [#]} 27. Qf5 $1 {[%emt 0:00:14][%csl LRe4,LRg4] Weighted Error Value: White=0.13 (very precise) /Black=0.32} 1-0

[Event "MPL 41st IND-ch Teams 2022"]
[Site "Jalgaon"]
[Date "2022.04.09"]
[Round "3.5"]
[White "Vignesh N R"]
[Black "Das, Sayantan"]
[Result "1/2-1/2"]
[ECO "B23"]
[WhiteElo "2444"]
[BlackElo "2459"]
[Annotator "TA"]
[PlyCount "30"]
[EventDate "2022.04.08"]
[EventType "team-tourn"]
[EventCountry "IND"]
[SourceTitle "playchess.com"]
[Source "ChessBase"]
[SourceQuality "1"]
[TimeControl "5400+30"]

{[%evp 13,15,-14,-6,-35]} 1. e4 {[%emt 0:00:03]} c5 {[%emt 0:00:18]} 2. Nc3 {[%emt 0:00:04]} Nc6 {[%emt 0:00:06]} 3. f4 {[%emt 0:00:03]} g6 {[%emt 0:00:16]} 4. Nf3 {[%emt 0:00:03]} Bg7 {[%emt 0:00:08]} 5. Bc4 {[%emt 0:00:03]} d6 {[%emt 0:00:14]} 6. d3 {[%emt 0:00:04]} e6 {[%emt 0:00:08]} 7. O-O {[%emt 0:00:08]} Nge7 {[%emt 0:00:08]} 8. Kh1 {[%emt 0:00:24] [#] A rather calm draw. B23: Closed Sicilian: Lines without g3.} {Predecessor:} O-O $146 9. Qe1 h6 10. Qh4 Nd4 11. Nxd4 cxd4 12. Ne2 d5 13. Bb3 dxe4 14. dxe4 d3 15. cxd3 Qxd3 {1-0 (52) Klekowski,M (2510)-Aditya,M (2438) Chess.com INT 2021} 1/2-1/2

[Event "MPL 41st IND-ch Teams 2022"]
[Site "Jalgaon"]
[Date "2022.04.09"]
[Round "3.6"]
[White "Das, Arghyadip"]
[Black "Deepan Chakkravarthy J."]
[Result "1/2-1/2"]
[ECO "A14"]
[WhiteElo "2471"]
[BlackElo "2520"]
[Annotator "TA"]
[PlyCount "37"]
[EventDate "2022.04.08"]
[EventType "team-tourn"]
[EventCountry "IND"]
[SourceTitle "playchess.com"]
[Source "ChessBase"]
[SourceQuality "1"]
[TimeControl "5400+30"]

{[%evp 14,15,15,0]} 1. Nf3 Nf6 2. c4 e6 3. g3 d5 4. Bg2 Be7 5. O-O O-O 6. d4 dxc4 7. Qc2 a6 8. Qxc4 {[#]} {Predecessor:} b5 $146 {E05: Open Catalan: 5 Nf3 Be7.} 9. Qc2 Bb7 10. Bd2 Be4 11. Qc1 c6 12. a4 Nbd7 13. Nc3 Bg6 14. Nh4 Bh5 15. h3 Rc8 16. axb5 cxb5 17. Qd1 b4 18. Na4 Rc4 19. Bc1 {½-½ (56) Esipenko,A (2723)-Oparin,G (2674) Berlin 2022} 1/2-1/2

[Event "MPL 41st IND-ch Teams 2022"]
[Site "Jalgaon"]
[Date "2022.04.10"]
[Round "4.1"]
[White "Aravindh, Chithambaram VR."]
[Black "Tarun V Kanth"]
[Result "1-0"]
[ECO "A05"]
[WhiteElo "2611"]
[BlackElo "1908"]
[Annotator "TA"]
[PlyCount "129"]
[EventDate "2022.04.08"]
[EventType "team-tourn"]
[EventCountry "IND"]
[SourceTitle "playchess.com"]
[Source "ChessBase"]
[SourceQuality "1"]
[TimeControl "5400+30"]

{[%evp 19,129,13,24,22,34,13,9,13,14,20,36,0,0,-7,21,8,30,19,19,31,42,38,41,19,20,20,23,-38,4,0,2,20,16,0,58,0,18,-28,-20,-33,-33,-25,0,-9,0,-10,6,0,22,0,0,-33,0,0,0,0,0,0,0,-66,0,0,0,0,0,0,0,0,0,0,15,15,15,15,15,15,15,15,286,275,260,162,162,172,433,433,729,814,812,795,770,741,671,556,612,543,1970,1954,1865,1749,1764,1062,12813,9923,29981,29981,29981,29982,29982,29983,29982,29983]} 1. Nf3 {[%emt 0:00:04]} Nf6 {[%emt 0:00:55]} 2. g3 {[%emt 0:00:10]} g6 {[%emt 0:00:14]} 3. Bg2 {[%emt 0:00:06]} Bg7 {[%emt 0:00:17]} 4. O-O {[%emt 0:00:26]} O-O {[%emt 0:00:15]} 5. d4 {[%emt 0:00:06]} d6 {[%emt 0:01:08]} 6. Nc3 {[%emt 0:01:06]} Nbd7 {[%emt 0:02:59]} 7. e4 {[%emt 0:00:40]} e5 {[%emt 0:04:04]} 8. Re1 {[%emt 0:00:20]} exd4 {[%emt 0:02:19]} 9. Nxd4 {[%emt 0:00:07]} Re8 {[%emt 0:01:21]} 10. h3 {[%emt 0:01:55]} c6 {[%emt 0:03:34]} 11. a4 {[%emt 0:08:12] B07: Pirc Defence: Miscellaneous Systems.} a5 {[%emt 0:01:42]} 12. Be3 {[%emt 0:03:49]} Nc5 {[%emt 0:09:01][%cal Rc5e4]} 13. f3 {[%emt 0:00:09] The position is equal.} Bd7 {[%emt 0:12:02]} 14. Bf2 {[%emt 0:02:52]} Qc7 {[%emt 0:04:00] [#]} 15. f4 $146 ({Predecessor:} 15. g4 Rad8 16. Qd2 h5 17. g5 Nh7 18. f4 f6 19. h4 fxg5 20. hxg5 Rf8 21. Nf3 {0-1 (42) Kosanovic,G (2369)-Kiremitciyan,A (2240) Novi Sad 2017}) 15... Rad8 {[%emt 0:05:50]} 16. Qf3 {[%emt 0:11:56]} Bc8 {[%emt 0:12:23]} 17. g4 {[%emt 0:07:34]} Ne6 {[%emt 0:11:54]} 18. Rad1 {[%emt 0:13:24]} Nxd4 {[%emt 0:00:41]} 19. Bxd4 {[%emt 0:00:07]} Nd7 {[%emt 0:03:23]} 20. Qf2 {[%emt 0:05:35]} Bxd4 {[%emt 0:02:03]} 21. Rxd4 {[%emt 0:04:23]} Nc5 {[%emt 0:04:47]} 22. Rd2 {[%emt 0:05:28]} Qe7 {[%emt 0:08:32]} 23. e5 {[%emt 0:01:51]} (23. Rdd1 $11) 23... Qf8 {[%emt 0:01:05]} 24. f5 {[%emt 0:04:05]} dxe5 {[%emt 0:02:17]} 25. Rxd8 {[%emt 0:00:07]} Rxd8 {[%emt 0:00:08]} 26. Rxe5 {[%emt 0:00:08]} b6 {[%emt 0:01:59]} (26... Nd7 $11 27. Re3 (27. Rxa5 Qb4 $11) 27... Nc5) 27. f6 {[%emt 0:03:56]} ({Better is} 27. fxg6 $14 hxg6 28. Bxc6) 27... Be6 {[%emt 0:01:04]} 28. Re1 {[%emt 0:03:54]} (28. Bxc6 {was preferrable.} Qh6 29. Qe3 Qxe3+ 30. Rxe3) 28... Rd6 $11 {[%emt 0:02:24]} 29. Qe3 {[%emt 0:03:54]} Qd8 {[%emt 0:01:11]} 30. Rf1 {[%emt 0:00:04]} Qf8 {[%emt 0:01:17]} 31. b3 {[%emt 0:00:23]} Qd8 {[%emt 0:00:08]} 32. Kh2 {[%emt 0:04:22]} Qb8 {[%emt 0:00:27]} (32... Rd2 $2 33. Qh6 Rxg2+ 34. Kh1 $18) 33. Qf4 {[%emt 0:00:08]} (33. Qh6 {seems wilder.} Rd4+ 34. Kg1 Qf8 35. Qxf8+ Kxf8 36. Bxc6 h5 37. gxh5 Bxh3 38. Re1) 33... Qd8 {[%emt 0:00:44]} 34. Rf2 {[%emt 0:00:14]} Qf8 {[%emt 0:00:22][%cal Oe6b3]} 35. Kh1 {[%emt 0:06:20]} Qd8 {[%emt 0:00:05]} (35... Bxb3 {looks sharper.} 36. cxb3 Nd3 37. Qe3 Nxf2+ 38. Qxf2 Qd8) 36. Kg1 {[%emt 0:00:05]} Qf8 {[%emt 0:00:10]} 37. Rd2 {[%emt 0:00:10]} Rxd2 {[%emt 0:00:32]} 38. Qxd2 {[%emt 0:00:04]} Nd7 {[%emt 0:00:29]} 39. Qd4 {[%emt 0:00:41]} (39. Ne4 $11) 39... Qb4 {[%emt 0:01:19]} ({Black should play} 39... c5 $1 $15 40. Qf4 c4 41. bxc4 Qc5+ 42. Kh1 Bxc4) 40. Qxb4 {[%emt 0:01:01]} axb4 {[%emt 0:00:02][%mdl 4096] Endgame KBN-KBN} 41. Ne4 {[%emt 0:00:04]} h6 {[%emt 0:00:19]} 42. Kf2 {[%emt 0:02:57]} Bd5 {[%emt 0:00:34]} 43. Ke3 {[%emt 0:02:06]} Kf8 {[%emt 0:00:36]} 44. h4 {[%emt 0:00:05] aiming for g5.} g5 {[%emt 0:00:42]} 45. hxg5 {[%emt 0:00:29]} hxg5 {[%emt 0:00:01]} 46. Bf3 {[%emt 0:00:14]} Bxe4 {[%emt 0:01:35]} 47. Kxe4 {[%emt 0:00:04] Hoping for Kf5.} Nxf6+ {[%emt 0:00:24] KB-KN} 48. Kf5 {[%emt 0:00:04]} Nh7 {[%emt 0:00:33][%mdl 8192] A mistake that costs the game.} (48... Nd5 $11) 49. Bxc6 {[%emt 0:00:31]} Ke7 {[%emt 0:00:08]} 50. Ke5 {[%emt 0:00:13]} Nf6 {[%emt 0:00:46]} 51. Bf3 {[%emt 0:00:05]} Nd7+ $2 {[%emt 0:00:25] [#]} (51... Ng8 52. Kd5 Kd7) 52. Kd5 $1 $18 {[%emt 0:00:10] Strongly threatening Be2.} f6 {[%emt 0:00:18]} (52... Nb8 $142 53. Kc4 Nd7) 53. Be4 {[%emt 0:01:33]} Ne5 {[%emt 0:00:28]} 54. Bf5 {[%emt 0:00:04]} Nf3 {[%emt 0:00:45] [#]} 55. Kc4 $1 {[%emt 0:00:43]} Kd6 {[%emt 0:00:34]} 56. Kxb4 {[%emt 0:00:05]} Nd4 {[%emt 0:00:38]} 57. Bd3 {[%emt 0:00:15]} Ke5 {[%emt 0:00:35]} 58. Kc4 {[%emt 0:00:24]} f5 {[%emt 0:00:30]} 59. c3 {[%emt 0:00:42]} Nc6 {[%emt 0:00:28]} 60. Bxf5 {[%emt 0:00:11] Threatens to win with Kb5.} Kf4 {[%emt 0:00:18]} 61. b4 {[%emt 0:00:27][%cal Bb3b4,Bb4a5][%mdl 32] White threatens Kb5 and mate.} Ne5+ {[%emt 0:00:09]} 62. Kb5 {[%emt 0:00:14] White mates.} Nxg4 {[%emt 0:00:07]} 63. Bxg4 {[%emt 0:00:07]} Kxg4 {[%emt 0:00:04]} 64. a5 {[%emt 0:00:04]} bxa5 {[%emt 0:00:12]} 65. bxa5 {[%emt 0:00:05] Weighted Error Value: White=0.13 (very precise) /Black=0.41} 1-0